bitfinex-derivatives/quotes_SOLF0:USTF0_20250329
["timestamp","ask_amount","ask_price","bid_price","bid_amount"]
[1743215339042,8.72733875,128.9,128.88,27.75809987]
[1743215340243,8.72733875,128.89,128.88,27.75809987]
[1743215341648,16.48933875,128.9,128.88,27.75809987]
[1743215342452,8.72733875,128.9,128.88,27.75809987]
[1743215343250,16.48893875,128.9,128.88,27.75809987]
[1743215343450,8.72733875,128.9,128.88,35.52089987]
[1743215343651,8.78318278,128.91,128.88,35.52089987]
[1743215344945,16.54458278,128.91,128.88,35.52089987]
[1743215346651,7.7618,128.9,128.88,27.75809987]
[1743215346847,16.48913875,128.9,128.88,27.75809987]
[1743215347259,8.78318278,128.91,128.88,27.75809987]
[1743215347657,8.72733875,128.89,128.88,27.75809987]
[1743215348757,16.48923875,128.9,128.88,27.75809987]
[1743215349952,8.72733875,128.9,128.88,27.75809987]
[1743215350154,0.05584403,128.91,128.88,36.48543862]
[1743215350455,0.05584403,128.91,128.89,8.72733875]
[1743215351056,0.05584403,128.91,128.89,16.48913875]
[1743215351560,0.05584403,128.91,128.9,16.48893875]
[1743215352150,8.72733875,128.96,128.9,8.72733875]
[1743215352352,8.72733875,128.96,128.91,36.24733875]
[1743215352555,7.7589,128.95,128.92,7.7604]
[1743215352951,8.72733875,128.96,128.91,36.24733875]
[1743215353150,7.7595,128.94,128.91,35.2807]
[1743215353355,7.7595,128.94,128.92,0.05196647]
[1743215360078,7.7598,128.93,128.92,0.05196647]
[1743215361277,16.48683875,128.94,128.92,0.05196647]
[1743215364784,7.7595,128.94,128.92,0.05196647]
[1743215365176,16.5445099,128.95,128.92,7.81226647]
[1743215365383,0.05827115,128.95,128.92,8.77930522]
[1743215366183,0.05827115,128.95,128.93,7.7595]
[1743215366385,0.05827115,128.95,128.94,27.42]
[1743215367786,7.81687115,128.95,128.94,27.42]
[1743215369288,16.5442099,128.95,128.94,27.42]
[1743215370286,7.81687115,128.95,128.94,27.42]
[1743215370883,0.05827115,128.95,128.94,27.42]
[1743215375489,0.05827115,128.95,128.94,35.1792]
[1743215376692,0.05827115,128.95,128.94,27.42]
[1743215378691,0.05827115,128.95,128.94,35.1792]
[1743215380691,7.7571,128.98,128.95,7.7582]
[1743215381785,7.80712146,128.98,128.95,7.8166723]
[1743215382892,7.80712146,128.98,128.95,16.54401105]
[1743215383393,0.05002146,128.98,128.96,7.758]
[1743215383594,0.05002146,128.98,128.97,27.32]
[1743215385194,7.80682146,128.98,128.97,27.32]
[1743215386590,0.05002146,128.98,128.97,27.32]
[1743215388499,7.80682146,128.98,128.97,27.32]
[1743215390991,0.05002146,128.98,128.97,27.32]
[1743215392998,0.05002146,128.98,128.97,35.0774]
[1743215393785,0.05002146,128.98,128.97,27.32]
[1743215398499,0.05002146,128.98,128.97,35.0774]
[1743215398697,0.05002146,128.98,128.97,27.32]
[1743215403102,7.80682146,128.98,128.97,27.32]
[1743215405599,8.77736021,128.98,128.95,0.0584723]
[1743215405795,8.72733875,128.96,128.88,265.89659433]
[1743215405992,2.19362146,128.98,128.88,264.54733875]
[1743215405993,8.72733875,128.93,128.88,264.54733875]
[1743215406206,16.48833875,128.92,128.89,27.26]
[1743215406398,8.72733875,128.92,128.9,27.26]
[1743215406898,8.78281963,128.92,128.9,27.30952199]
[1743215407801,7.7612,128.91,128.9,27.30952199]
[1743215409502,7.7612,128.91,128.9,0.04952199]
[1743215409895,7.7612,128.91,128.9,27.32952199]
[1743215410904,7.7612,128.91,128.9,0.04952199]
[1743215411204,16.54341963,128.92,128.9,27.32952199]
[1743215411504,0.05548088,128.92,128.9,27.32952199]
[1743215412301,7.81608088,128.92,128.9,27.32952199]
[1743215413107,0.05548088,128.92,128.91,16.48833875]
[1743215415000,0.05548088,128.92,128.9,7.81102199]
[1743215415198,0.05548088,128.92,128.91,27.34]
[1743215415697,0.05548088,128.92,128.91,35.101]
[1743215416307,0.05548088,128.92,128.91,27.34]
[1743215416906,0.05548088,128.92,128.91,35.101]
[1743215419003,0.05548088,128.92,128.91,43.82833875]
[1743215421611,0.05548088,128.92,128.91,35.101]
[1743215426317,0.05548088,128.92,128.9,0.04952199]
[1743215426709,8.72733875,128.91,128.9,27.36952199]
[1743215426914,8.72733875,128.91,128.88,255.82]
[1743215427212,8.72733875,128.91,128.89,27.34]
[1743215427419,8.72733875,128.9,128.89,27.34]
[1743215427615,7.7616,128.9,128.89,27.34]
[1743215428116,7.7616,128.9,128.88,255.8794197]
[1743215428318,7.7616,128.9,128.89,27.34]
[1743215430023,7.7622,128.89,128.88,283.2394197]
[1743215436719,2.17408088,128.92,128.88,291.96675845]
[1743215436918,0.05548088,128.92,128.89,8.72733875]
[1743215437118,7.81598088,128.92,128.89,16.48923875]
[1743215438624,0.05548088,128.92,128.9,7.7615]
[1743215438820,0.05548088,128.92,128.91,27.34]
[1743215442933,0.05548088,128.92,128.91,43.82833875]
[1743215443128,10.87963875,128.97,128.91,43.82833875]
[1743215443329,10.87963875,128.97,128.92,8.72733875]
[1743215443529,7.7596,128.94,128.92,8.72733875]
[1743215443728,7.7596,128.94,128.91,43.82833875]
[1743215444323,7.7596,128.94,128.91,43.88074905]
[1743215444324,7.80982128,128.94,128.91,43.88074905]
[1743215448022,8.77756003,128.94,128.91,0.0524103]
[1743215448231,8.72733875,128.93,128.9,27.28]
[1743215448422,8.72733875,128.91,128.9,27.28]
[1743215449033,16.48833875,128.91,128.9,27.28]
[1743215449528,8.77756003,128.94,128.9,27.28]
[1743215449722,7.7604,128.93,128.9,35.0415]
[1743215450129,0.05022128,128.94,128.9,36.00733875]
[1743215450330,0.05022128,128.94,128.9,27.28]
[1743215450725,7.761,128.92,128.9,27.28]
[1743215451228,7.761,128.91,128.9,27.28]
[1743215451427,7.761,128.91,128.89,8.78181064]
[1743215451625,7.761,128.91,128.9,27.3]
[1743215451929,7.81366946,128.91,128.9,27.3]
[1743215454930,0.05266946,128.91,128.9,27.3]
[1743215456130,0.05266946,128.91,128.9,35.0616]
[1743215456932,0.05266946,128.91,128.9,27.3]
[1743215457832,0.05266946,128.91,128.9,35.0616]
[1743215460124,7.7595,128.94,128.92,7.7604]
[1743215460331,7.7595,128.94,128.93,27.28]
[1743215462133,7.7598,128.93,128.92,27.33875118]
[1743215462332,16.48713875,128.93,128.92,27.33875118]
[1743215465035,16.48713875,128.93,128.92,0.05875118]
[1743215467742,7.7598,128.93,128.92,0.05875118]
[1743215468841,8.78442257,128.95,128.92,0.05875118]
[1743215469041,8.78442257,128.95,128.93,27.28]
[1743215469837,7.7593,128.94,128.93,27.28]
[1743215474644,7.7598,128.93,128.92,0.05875118]
[1743215474845,16.48713875,128.93,128.92,0.05875118]
[1743215478745,7.7598,128.93,128.92,0.05875118]
[1743215479746,16.48713875,128.93,128.92,0.05875118]
[1743215486244,7.7598,128.93,128.92,0.05875118]
[1743215489656,7.7595,128.94,128.92,0.05875118]
[1743215491552,7.81598382,128.95,128.92,7.81915118]
[1743215493149,7.7592,128.94,128.92,0.05875118]
[1743215496451,7.7598,128.93,128.92,0.05875118]
[1743215501754,16.48683875,128.94,128.92,0.05875118]
[1743215502059,0.05708382,128.95,128.92,0.05875118]
[1743215502663,7.81598382,128.95,128.92,16.54628993]
[1743215504450,7.7593,128.94,128.92,8.78608993]
[1743215504656,0.05708382,128.95,128.92,0.05875118]
[1743215505362,8.72733875,128.94,128.92,0.05875118]
[1743215505551,8.72733875,128.94,128.93,27.28]
[1743215506465,7.7592,128.94,128.93,27.28]
[1743215510864,7.81598382,128.95,128.93,27.28]
[1743215511465,7.7592,128.94,128.93,27.28]
[1743215512366,7.81588382,128.95,128.93,27.28]
[1743215516475,7.7592,128.94,128.93,27.28]
[1743215520267,7.81598382,128.95,128.93,27.28]
[1743215521075,0.05708382,128.95,128.93,35.0396]
[1743215521672,0.05708382,128.95,128.93,43.76693875]
[1743215522375,0.05708382,128.95,128.94,16.48653875]
[1743215522973,7.7565,128.99,128.95,7.758]
[1743215523176,7.7565,128.99,128.96,36.00733875]
[1743215523980,7.80553781,128.99,128.96,36.05848198]
[1743215524578,0.04903781,128.99,128.96,36.05848198]
[1743215524773,0.04903781,128.99,128.97,8.72733875]
[1743215525281,0.04903781,128.99,128.98,8.72733875]
[1743215526575,0.04903781,128.99,128.98,16.48413875]
[1743215526776,0.04903781,128.99,128.98,8.72733875]
[1743215527782,0.04903781,128.99,128.98,16.48413875]
[1743215528084,0.04903781,128.99,128.98,8.72733875]
[1743215528887,0.04903781,128.99,128.97,8.72733875]
[1743215529077,0.04903781,128.99,128.96,291.93848198]
[1743215529784,7.7571,128.98,128.96,291.93848198]
[1743215531889,7.7574,128.97,128.96,291.93848198]
[1743215533893,7.7572,128.98,128.96,291.93848198]
[1743215534081,7.7572,128.98,128.97,8.72733875]
[1743215539491,0.04903781,128.99,128.97,8.72733875]
[1743215539795,0.04903781,128.99,128.98,8.72733875]
[1743215541594,8.72733875,129.06,128.98,8.72733875]
[1743215541797,8.72733875,129.06,129.01,8.72733875]
[1743215541993,8.72733875,129.06,129.02,27.26]
[1743215542697,0.04900264,129.05,129.03,0.04939561]
[1743215543795,7.7535,129.04,129.03,0.04939561]
[1743215545589,0.04900264,129.05,129.03,0.04939561]
[1743215545795,0.04900264,129.05,129.03,8.77673436]
[1743215546193,7.7532,129.04,129.03,8.77673436]
[1743215547193,7.80190264,129.05,129.03,8.77673436]
[1743215547599,0.04900264,129.05,129.04,8.72733875]
[1743215548602,7.80160264,129.05,129.04,8.72733875]
[1743215548799,0.04900264,129.05,129.04,8.72733875]
[1743215550297,7.80160264,129.05,129.04,8.72733875]
[1743215552396,7.7532,129.04,129.03,0.04939561]
[1743215555800,7.80190264,129.05,129.03,8.77673436]
[1743215556005,7.80190264,129.05,129.04,8.72733875]
[1743215556204,0.04900264,129.05,129.04,8.72733875]
[1743215563904,0.04900264,129.05,129.04,16.48053875]
[1743215565404,0.04900264,129.05,129.04,8.72733875]
[1743215568098,7.80160264,129.05,129.04,8.72733875]
[1743215568507,0.04900264,129.05,129.04,8.72733875]
[1743215570600,0.04900264,129.05,129.03,16.53043436]
[1743215571010,0.04900264,129.05,129.03,8.77673436]
[1743215571207,7.80170264,129.05,129.03,8.77673436]
[1743215572007,0.04900264,129.05,129.04,7.7532]
[1743215574005,0.04900264,129.05,129.03,0.04939561]
[1743215574211,0.04900264,129.05,129.04,8.72733875]
[1743215575611,0.04900264,129.05,129.03,0.04939561]
[1743215576609,0.04900264,129.05,129.04,27.24]
[1743215576810,7.80200264,129.05,129.04,27.24]
[1743215579316,0.04900264,129.05,129.04,27.24]
[1743215579824,0.04900264,129.05,129.04,43.72053875]
[1743215581814,0.04900264,129.05,129.04,35.96733875]
[1743215585619,7.80160264,129.05,129.04,27.24]
[1743215593531,7.7532,129.04,129.03,0.04939561]
[1743215593731,7.7532,129.04,129.03,36.01673436]
[1743215594631,7.80180264,129.05,129.03,36.01673436]
[1743215594838,0.04900264,129.05,129.03,36.01673436]
[1743215595532,7.80160264,129.05,129.03,43.77043436]
[1743215595733,7.80160264,129.05,129.03,36.01673436]
[1743215598334,7.7532,129.04,129.03,36.01673436]
[1743215598725,0.04900264,129.05,129.03,36.01673436]
[1743215598936,7.80190264,129.05,129.03,36.01673436]
[1743215599233,0.04900264,129.05,129.03,36.01673436]
[1743215599434,7.7532,129.04,129.03,36.01673436]
[1743215599630,7.7532,129.04,129.03,8.77673436]
[1743215599832,7.7532,129.04,129.03,27.28939561]
[1743215603429,7.7532,129.04,129.03,0.04939561]
[1743215603629,7.7532,129.04,129.03,27.28939561]
[1743215603833,9.8431,129.04,129.03,27.28939561]
[1743215604123,9.8431,129.04,129.03,0.04939561]
[1743215611441,7.755,129.01,129.0,255.68]
[1743215611645,7.755,129.01,129.0,282.92]
[1743215612436,7.755,129.01,129.0,27.24]
[1743215612740,7.7556,129.0,128.99,27.29867467]
[1743215616041,16.48293875,129.0,128.99,7.467e-05]
[1743215630462,7.758,128.96,128.95,27.26]
[1743215631560,7.7586,128.95,128.94,283.03468623]
[1743215633166,7.7586,128.95,128.94,255.77468623]
[1743215633357,7.7586,128.95,128.94,283.03468623]
[1743215642166,16.48593875,128.95,128.94,27.31468623]
[1743215645174,16.48593875,128.95,128.94,0.05468623]
[1743215649174,7.7586,128.95,128.94,0.05468623]
[1743215649471,0.0542213,128.97,128.94,8.78202498]
[1743215649665,125.9724276,129.03,128.96,8.72733875]
[1743215649867,125.9724276,129.03,128.98,8.72733875]
[1743215649868,42.63457776,129.01,128.98,8.72733875]
[1743215650063,42.63457776,129.01,129.0,8.72733875]
[1743215650275,85.26915553,129.02,129.0,35.98733875]
[1743215650481,85.26915553,129.02,129.01,8.72733875]
[1743215651170,46.98585337,129.03,129.01,8.72733875]
[1743215651370,213.17288883,129.04,129.02,8.72733875]
[1743215651567,213.17288883,129.04,129.03,43.74113875]
[1743215651771,213.17288883,129.04,129.03,35.98733875]
[1743215653380,0.05701537,129.05,129.03,35.98733875]
[1743215653881,0.05701537,129.05,129.03,27.31438977]
[1743215654572,7.7532,129.04,129.03,27.31438977]
[1743215660485,7.7532,129.04,129.03,27.29438977]
[1743215661380,7.7532,129.04,129.03,0.05438977]
[1743215661683,7.7532,129.04,129.03,27.29438977]
[1743215663990,16.48053875,129.04,129.03,0.05438977]
[1743215664189,16.48053875,129.04,129.03,27.29438977]
[1743215665685,7.7532,129.04,129.03,27.29438977]
[1743215680298,0.05701537,129.05,129.03,36.02172852]
[1743215680998,7.80961537,129.05,129.03,36.02172852]
[1743215681597,0.05701537,129.05,129.03,43.77552852]
[1743215682493,0.05701537,129.05,129.04,7.7532]
[1743215684799,0.05701537,129.05,129.04,16.48053875]
[1743215685000,0.05701537,129.05,129.04,8.72733875]
[1743215685698,0.05701537,129.05,129.03,27.29438977]
[1743215686500,7.80991537,129.05,129.03,27.29438977]
[1743215690599,7.80991537,129.05,129.03,35.04818977]
[1743215690796,0.05701537,129.05,129.03,35.04818977]
[1743215690996,8.72733875,129.1,129.05,7.7521]
[1743215691200,8.72733875,129.1,129.06,35.96733875]
[1743215691596,8.72733875,129.1,129.06,43.71933875]
[1743215691797,8.72733875,129.11,129.06,35.96733875]
[1743215691999,7.7499,129.1,129.06,35.96733875]
[1743215692207,7.80837949,129.1,129.07,7.80151833]
[1743215692797,7.7503,129.09,129.07,0.05011833]
[1743215693500,7.7508,129.08,129.07,0.05011833]
[1743215694204,7.7505,129.09,129.07,0.05011833]
[1743215695601,7.7505,129.09,129.08,27.24]
[1743215702006,16.47783875,129.09,129.08,23.9783]
[1743215705828,7.7508,129.08,129.07,0.05011833]
[1743215706033,8.72733875,129.08,128.99,8.72733875]
[1743215706229,8.72733875,129.04,129.0,27.24]
[1743215706426,8.72733875,129.03,129.0,27.24]
[1743215706623,7.755,129.01,129.0,27.24]
[1743215708423,7.80397742,129.02,129.0,27.24]
[1743215709731,7.80397742,129.02,128.99,0.05885951]
[1743215709930,7.80397742,129.02,129.0,27.24]
[1743215711033,7.755,129.01,129.0,27.24]
[1743215713835,7.80387742,129.02,129.0,27.24]
[1743215714034,0.04927742,129.02,129.0,27.24]
[1743215714737,7.755,129.01,129.0,27.24]
[1743215717739,16.48233875,129.01,129.0,27.24]
[1743215718634,8.72733875,129.01,129.0,27.24]
[1743215719836,16.53121617,129.02,129.0,27.24]
[1743215720041,0.04927742,129.02,129.0,27.24]
[1743215720233,0.04927742,129.02,129.0,35.96733875]
[1743215721240,0.04927742,129.02,129.01,7.755]
[1743215724248,0.04927742,129.02,129.0,35.96733875]
[1743215724440,0.04927742,129.02,129.0,27.24]
[1743215725240,8.77661617,129.02,129.0,27.24]
[1743215725749,7.755,129.01,129.0,27.24]
[1743215725949,8.77661617,129.02,129.0,27.24]
[1743215726741,16.53131617,129.02,129.0,27.24]
[1743215728251,7.755,129.01,129.0,27.24]
[1743215728642,16.53121617,129.02,129.0,27.24]
[1743215730150,7.755,129.01,129.0,27.24]
[1743215731047,7.80397742,129.02,129.0,27.24]
[1743215731343,7.80397742,129.02,128.99,0.05885951]
[1743215731550,7.80397742,129.02,129.0,27.24]
[1743215741556,0.04927742,129.02,129.0,27.24]
[1743215741859,8.72733875,129.07,129.0,35.96733875]
[1743215742160,8.72733875,129.07,129.02,8.72733875]
[1743215742357,8.72733875,129.07,129.03,27.24]
[1743215742959,10.75623875,129.08,129.04,7.753]
[1743215743156,32.12320827,129.12,129.05,8.72733875]
[1743215743157,0.05497838,129.06,129.05,8.72733875]
[1743215743356,364.0,129.1,129.05,35.96733875]
[1743215743556,0.05801829,129.07,129.06,16.47883875]
[1743215744065,0.05801829,129.07,129.05,27.24]
[1743215744066,0.05801829,129.07,129.05,27.29814677]
[1743215744651,0.05801829,129.07,129.05,36.02548552]
[1743215744865,0.05801829,129.07,129.06,7.752]
[1743215745254,0.05801829,129.07,129.05,36.02548552]
[1743215745554,0.05801829,129.07,129.05,43.77778552]
[1743215753165,0.05801829,129.07,129.06,7.752]
[1743215753556,0.05801829,129.07,129.05,36.02548552]
[1743215753760,0.05801829,129.07,129.05,43.77768552]
[1743215755161,0.05801829,129.07,129.05,0.05814677]
[1743215755361,0.05801829,129.07,129.06,27.24]
[1743215755563,7.80941829,129.07,129.06,27.24]
[1743215755759,8.78535704,129.07,129.06,27.24]
[1743215756564,16.53675704,129.07,129.06,27.24]
[1743215760464,0.05801829,129.07,129.06,27.24]
[1743215761267,0.05801829,129.07,129.06,34.992]
[1743215761661,0.05801829,129.07,129.06,43.71933875]
[1743215764769,0.05801829,129.07,129.06,34.992]
[1743215765671,0.05801829,129.07,129.06,27.24]
[1743215767166,0.05801829,129.07,129.06,27.22]
[1743215767474,0.05801829,129.07,129.05,24.01684677]
[1743215767675,8.72733875,129.06,129.05,24.01684677]
[1743215768278,16.47933875,129.06,129.05,24.01684677]
[1743215769977,7.7526,129.05,129.04,0.05390467]
[1743215770179,16.47993875,129.05,129.04,27.27390467]
[1743215772081,16.47993875,129.05,129.04,27.29390467]
[1743215775874,16.47943875,129.06,129.04,27.29390467]
[1743215776181,0.05801829,129.07,129.04,36.02124342]
[1743215776373,0.05801829,129.07,129.04,43.77414342]
[1743215776573,7.80971829,129.07,129.04,43.77414342]
[1743215776770,0.05801829,129.07,129.04,43.77414342]
[1743215776974,0.05801829,129.07,129.06,8.72733875]
[1743215778680,0.05801829,129.07,129.06,16.47933875]
[1743215779075,7.7497,129.1,129.06,264.40733875]
[1743215779382,7.7497,129.1,129.07,43.71863875]
[1743215780083,7.80551861,129.1,129.07,43.77266292]
[1743215780583,7.7502,129.09,129.07,36.02136292]
[1743215781285,0.05581861,129.1,129.07,27.29402417]
[1743215782085,7.7506,129.09,129.07,27.29402417]
[1743215784488,7.80571861,129.1,129.07,36.02136292]
[1743215787896,8.78315736,129.1,129.07,27.29402417]
[1743215788089,8.72733875,129.09,129.07,27.29402417]
[1743215788792,7.7508,129.08,129.07,27.29402417]
[1743215790587,7.7508,129.08,129.07,27.27402417]
[1743215798501,7.7505,129.09,129.07,27.27402417]
[1743215799702,7.7508,129.08,129.07,27.27402417]
[1743215800699,16.47813875,129.08,129.07,27.27402417]
[1743215805407,16.47813875,129.08,129.07,0.05402417]
[1743215805595,16.47813875,129.08,129.07,27.27402417]
[1743215808914,0.05581861,129.1,129.07,27.27402417]
[1743215809109,0.05581861,129.1,129.07,36.00136292]
[1743215809316,0.05581861,129.1,129.09,8.72733875]
[1743215809510,0.05581861,129.1,129.09,16.47753875]
[1743215813606,0.05581861,129.1,129.09,8.72733875]
[1743215814711,0.05581861,129.1,129.09,16.47753875]
[1743215816017,0.05581861,129.1,129.09,8.72733875]
[1743215818419,8.72733875,129.14,129.09,16.47753875]
[1743215818615,364.0,129.17,129.12,8.72733875]
[1743215818813,364.0,129.17,129.14,8.72733875]
[1743215819014,372.72733875,129.17,129.13,27.22]
[1743215819318,8.72733875,129.16,129.13,27.22]
[1743215819719,8.78692045,129.16,129.13,27.26912122]
[1743215820114,7.7472,129.14,129.13,27.26912122]
[1743215821011,16.47453875,129.14,129.13,27.26912122]
[1743215823018,8.72733875,129.14,129.08,8.72733875]
[1743215823213,8.72733875,129.12,129.09,27.22]
[1743215823620,7.7496,129.1,129.09,27.22]
[1743215825424,7.7502,129.09,129.08,0.05584792]
[1743215825726,7.7502,129.09,129.08,27.27584792]
[1743215826728,7.7502,129.09,129.08,0.05584792]
[1743215826929,7.7502,129.09,129.08,27.27584792]
[1743215829327,16.47753875,129.09,129.08,0.05584792]
[1743215829529,16.47753875,129.09,129.08,27.27584792]
[1743215832030,16.47753875,129.09,129.08,4.792e-05]
[1743215835725,18.54373875,129.09,129.08,4.792e-05]
[1743215841634,16.47753875,129.09,129.08,4.792e-05]
[1743215845337,7.7502,129.09,129.08,4.792e-05]
[1743215846835,7.7499,129.1,129.08,4.792e-05]
[1743215847031,7.7499,129.1,129.09,27.22]
[1743215849048,16.47723875,129.1,129.09,27.22]
[1743215863863,16.47723875,129.1,129.08,4.792e-05]
[1743215863864,7.7502,129.09,129.08,4.792e-05]
[1743215864058,16.47753875,129.09,129.08,4.792e-05]
[1743215880076,16.47753875,129.09,129.08,27.22004792]
[1743215881078,16.47753875,129.09,129.08,4.792e-05]
[1743215881378,7.7526,129.05,129.04,255.62]
[1743215881574,7.7526,129.05,129.04,282.84]
[1743215883382,7.7526,129.05,129.04,255.62]
[1743215883578,16.47993875,129.05,129.04,255.62]
[1743215883883,16.47993875,129.05,129.04,282.84]
[1743215887085,16.47993875,129.05,129.04,255.62]
[1743215889890,0.05381462,129.06,129.04,255.62]
[1743215890387,0.05381462,129.06,129.05,7.7526]
[1743215890681,0.05381462,129.06,129.05,16.47993875]
[1743215901993,0.05381462,129.06,129.04,272.10033875]
[1743215902591,8.78115337,129.06,129.05,27.22]
[1743215902791,8.78115337,129.06,129.04,282.84]
[1743215903090,16.47993875,129.05,129.04,27.22]
[1743215904897,7.7526,129.05,129.04,27.22]
[1743215916203,7.7532,129.04,129.03,0.05370336]
[1743215916403,16.48053875,129.04,129.03,0.05370336]
[1743215919406,16.48053875,129.04,129.03,3.36e-06]
[1743215922213,7.7562,128.99,128.98,282.86]
[1743215922505,16.48353875,128.99,128.98,282.86]
[1743215922705,16.48353875,128.99,128.98,255.64]
[1743215924813,7.7568,128.98,128.97,0.05899536]
[1743215925608,16.48413875,128.98,128.97,0.05899536]
[1743215925812,7.7589,128.95,128.92,8.72733875]
[1743215926014,8.72733875,128.97,128.93,27.22]
[1743215926707,7.7586,128.96,128.93,27.22]
[1743215927013,7.80929795,128.96,128.93,27.27134645]
[1743215929417,7.80929795,128.96,128.93,35.03104645]
[1743215931111,7.80929795,128.96,128.93,7.81104645]
[1743215931312,7.80929795,128.96,128.94,27.22]
[1743215935724,7.80929795,128.96,128.95,27.22]
[1743215940937,0.05069795,128.96,128.95,27.22]
[1743215941535,7.80869795,128.96,128.95,27.22]
[1743215947131,16.5360367,128.96,128.95,27.22]
[1743215949233,7.7592,128.94,128.93,0.05134645]
[1743215949434,7.7592,128.94,128.93,27.29134645]
[1743215949633,16.48653875,128.94,128.93,4.645e-05]
[1743215957536,371.7589,128.95,128.93,4.645e-05]
[1743215957743,8.7780367,128.96,128.93,4.645e-05]
[1743215958046,8.7780367,128.96,128.93,7.75944645]
[1743215958047,0.05069795,128.96,128.93,7.75944645]
[1743215958439,0.05069795,128.96,128.93,16.4867852]
[1743215958739,371.7568,128.99,128.95,8.72733875]
[1743215958938,8.72733875,129.01,128.96,35.96733875]
[1743215959245,8.72733875,129.01,128.97,27.24]
[1743215959447,16.48253875,129.01,128.97,27.24]
[1743215959737,8.72733875,128.99,128.97,27.24]
[1743215959947,16.48413875,128.98,128.97,27.24]
[1743215960140,16.48413875,128.98,128.97,27.29859611]
[1743215961139,16.48373875,128.99,128.97,27.29859611]
[1743215962939,7.7568,128.98,128.97,27.29859611]
[1743215964147,16.48373875,128.99,128.97,27.29859611]
[1743215965046,7.7564,128.99,128.97,27.29859611]
[1743215967647,7.81358321,129.0,128.97,27.29859611]
[1743215967849,7.81358321,129.0,128.97,36.02593486]
[1743215968852,7.81358321,129.0,128.97,43.78323486]
[1743215972650,7.7563,128.99,128.97,36.02593486]
[1743215972837,7.7563,128.99,128.97,27.29859611]
[1743215973544,7.7568,128.98,128.97,27.29859611]
[1743215976052,7.7563,128.99,128.97,27.29859611]
[1743215977857,7.7568,128.98,128.97,27.29859611]
[1743215979056,7.7564,128.99,128.97,27.29859611]
[1743215979353,8.78512196,129.0,128.97,27.29859611]
[1743215979653,7.7566,128.99,128.97,27.29859611]
[1743215980952,7.81358321,129.0,128.97,35.05579611]
[1743215981155,0.05778321,129.0,128.98,8.72733875]
[1743215982852,0.05778321,129.0,128.99,7.7562]
[1743215983154,0.05778321,129.0,128.99,16.48353875]
[1743215983549,0.05778321,129.0,128.99,8.72733875]
[1743215983951,0.05778321,129.0,128.98,16.48383875]
[1743215985652,0.05778321,129.0,128.99,7.7562]
[1743215988454,0.05778321,129.0,128.98,16.48393875]
[1743215988643,0.05778321,129.0,128.98,8.72733875]
[1743215988848,0.05778321,129.0,128.97,36.02593486]
[1743215989247,7.7562,128.99,128.97,36.02593486]
[1743215989955,7.7562,128.99,128.97,27.29859611]
[1743215992656,7.7568,128.98,128.97,27.29859611]
[1743216000261,7.7565,128.99,128.97,27.29859611]
[1743216000859,8.78512196,129.0,128.97,0.05859611]
[1743216001052,7.7562,128.99,128.98,27.22]
[1743216003256,7.7562,128.99,128.97,0.05859611]
[1743216003559,7.7562,128.99,128.98,27.22]
[1743216009368,16.48353875,128.99,128.98,27.22]
[1743216024075,7.7568,128.98,128.97,0.05859611]
[1743216024279,8.72733875,128.99,128.94,283.02]
[1743216024483,8.72733875,128.95,128.94,283.02]
[1743216024680,16.48593875,128.95,128.94,283.02]
[1743216031694,7.7586,128.95,128.94,283.02]
[1743216031881,7.81596809,128.96,128.94,283.02]
[1743216036696,7.7586,128.95,128.94,283.02]
[1743216038293,16.48593875,128.95,128.94,27.22]
[1743216038495,7.7592,128.94,128.93,0.05031661]
[1743216038691,16.48653875,128.94,128.93,1.661e-05]
[1743216039196,16.48833875,128.91,128.9,283.1]
[1743216039795,16.48833875,128.91,128.9,255.88]
[1743216039996,16.48833875,128.91,128.9,283.1]
[1743216041298,7.761,128.91,128.9,283.1]
[1743216041897,7.8172885,128.92,128.9,283.1]
[1743216042397,0.0566885,128.92,128.9,283.1]
[1743216045698,8.72733875,128.98,128.91,8.72733875]
[1743216045994,8.72733875,128.98,128.93,8.72733875]
[1743216046200,8.72733875,128.96,128.94,27.22]
[1743216046400,8.72733875,128.95,128.94,27.22]
[1743216047799,16.48593875,128.95,128.94,27.22]
[1743216051203,7.7592,128.94,128.93,0.05361503]
[1743216051397,16.48653875,128.94,128.93,27.27361503]
[1743216052199,16.48653875,128.94,128.93,0.05361503]
[1743216055209,16.48653875,128.94,128.93,1.503e-05]
[1743216055409,7.761,128.91,128.9,255.88]